fUSD/lending_fUSD_20250206
["ID","MTS","AMOUNT","RATE_DAILY","PERIOD"]
[351955625,1738860640880,-500.0,0.00016438,2]
[351955627,1738860640891,-500.0,0.00016438,2]
[351955628,1738860640900,-500.0,0.00016438,2]
[351955630,1738860640910,-1556.99,0.00016438,2]
[351955633,1738860640920,-682.72,0.00016438,2]
[351955635,1738860640930,-500.0,0.00016438,2]
[351955636,1738860640939,-973.72,0.00016438,2]
[351955638,1738860640948,-74.11240694,0.00016438,2]
[351955641,1738860640961,-633.23759306,0.00016438,2]
[351955643,1738860640974,-708.99388787,0.00016438,2]
[351955645,1738860640986,-41.97611213,0.00016438,2]
[351955647,1738860640996,-511.46,0.00016438,2]
[351955649,1738860641005,-500.0,0.00016438,2]
[351955651,1738860641015,-500.0,0.00016438,2]
[351955653,1738860641024,-500.0,0.00016438,2]
[351955655,1738860641035,-407.37240694,0.00016438,2]
[351955657,1738860641046,-267.77759306,0.00016438,2]
[351955659,1738860641056,-759.09,0.00016438,2]
[351955661,1738860641067,-1470.9,0.00016438,2]
[351955663,1738860641076,-343.46940701,0.00016438,2]
[351955666,1738860641094,-156.53059299,0.00016438,2]
[351955668,1738860641103,-274.05095034,0.00016438,2]
[351955855,1738860643465,-225.94904966,0.00016438,2]
[351955856,1738860643475,-1530.82,0.00016438,2]
[351955857,1738860643484,-780.39,0.00016438,2]
[351955858,1738860643494,-500.0,0.00016438,2]
[351955859,1738860643503,-500.0,0.00016438,2]
[351955860,1738860643513,-500.0,0.00016438,2]
[351955861,1738860643523,-500.0,0.00016438,2]
[351955862,1738860643533,-500.0,0.00016438,2]
[351955863,1738860643545,-500.0,0.00016438,2]
[351955864,1738860643555,-554.73,0.00016438,2]
[351955865,1738860643564,-500.0,0.00016438,2]
[351955866,1738860643573,-500.0,0.00016438,2]
[351955867,1738860643584,-230.3618333,0.00016438,2]
[351955868,1738860643594,-558.21,0.00016438,2]
[351955869,1738860643604,-500.0,0.00016438,2]
[351955870,1738860643616,-468.53662139,0.00016438,2]
[351955871,1738860643629,-31.46337861,0.00016438,2]
[351955872,1738860643639,-453.84530139,0.00016438,2]
[351955873,1738860643651,-46.15469861,0.00016438,2]
[351955874,1738860643661,-1212.42,0.00016438,2]
[351955875,1738860643671,-500.0,0.00016438,2]
[351955876,1738860643680,-500.0,0.00016438,2]
[351955877,1738860643691,-838.35,0.00016438,2]
[351955878,1738860643702,-500.0,0.00016438,2]
[351955879,1738860643711,-527.82940212,0.00016438,2]
[351955880,1738860643723,-202.38597064,0.00016438,2]
[351955881,1738860643733,-1142.64,0.00016438,2]
[351955882,1738860643742,-500.0,0.00016438,2]
[351955883,1738860643752,-1268.05,0.00016438,2]
[351955884,1738860643762,-500.0,0.00016438,2]
[351955885,1738860643772,-500.0,0.00016438,2]
[351955886,1738860643781,-500.0,0.00016438,2]
[351955888,1738860643792,-535.59311012,0.00016438,2]
[351955889,1738860643801,-601.72,0.00016438,2]
[351955890,1738860643811,-500.0,0.00016438,2]
[351955891,1738860643820,-500.0,0.00016438,2]
[351955892,1738860643829,-500.0,0.00016438,2]
[351955893,1738860643839,-500.0,0.00016438,2]
[351955894,1738860643849,-500.0,0.00016438,2]
[351955895,1738860643858,-500.0,0.00016438,2]
[351955896,1738860643871,-692.47,0.00016438,2]
[351955897,1738860643882,-631.28,0.00016438,2]
[351955898,1738860643895,-500.0,0.00016575,2]
[351955900,1738860643905,-769.06,0.00016575,2]
[351955901,1738860643916,-500.0,0.00016575,2]
[351955902,1738860643925,-500.0,0.00016575,2]
[351955903,1738860643937,-500.0,0.00016575,2]
[351955904,1738860643947,-1104.2,0.00016575,2]
[351955905,1738860643956,-1914.98,0.00016575,2]
[351955906,1738860643968,-500.0,0.00016575,2]
[351955907,1738860643978,-500.0,0.00016575,2]
[351955908,1738860643987,-500.0,0.00016575,2]
[351955909,1738860643996,-1560.07,0.00016575,2]
[351955910,1738860644006,-500.0,0.00016575,2]
[351955911,1738860644015,-500.0,0.00016575,2]
[351955912,1738860644025,-500.0,0.00016575,2]
[351955913,1738860644035,-1556.99,0.00016575,2]
[351955914,1738860644044,-500.0,0.00016575,2]
[351955915,1738860644054,-500.0,0.00016575,2]
[351955916,1738860644065,-682.72,0.00016575,2]
[351955917,1738860644074,-973.72,0.00016575,2]
[351955918,1738860644084,-707.35,0.00016575,2]
[351955919,1738860644095,-750.97,0.00016575,2]
[351955920,1738860644105,-511.46,0.00016575,2]
[351955921,1738860644117,-500.0,0.00016575,2]
[351955922,1738860644127,-500.0,0.00016575,2]
[351955923,1738860644137,-500.0,0.00016575,2]
[351955924,1738860644147,-675.15,0.00016575,2]
[351955925,1738860644157,-759.09,0.00016575,2]
[351955926,1738860644166,-1470.9,0.00016575,2]
[351955927,1738860644176,-415.2908645,0.00016575,2]
[351955928,1738860644186,-500.0,0.00016575,2]
[351955929,1738860644195,-1530.82,0.00016575,2]
[351955930,1738860644205,-780.39,0.00016575,2]
[351955931,1738860644215,-500.0,0.00016575,2]
[351955932,1738860644225,-500.0,0.00016575,2]
[351955933,1738860644234,-500.0,0.00016575,2]
[351955934,1738860644244,-500.0,0.00016575,2]
[351955935,1738860644254,-500.0,0.00016575,2]
[351955936,1738860644264,-554.73,0.00016575,2]
[351955937,1738860644273,-500.0,0.00016575,2]
[351955938,1738860644283,-500.0,0.00016575,2]
[351955939,1738860644292,-558.21,0.00016575,2]
[351955940,1738860644301,-500.0,0.00016575,2]
[351955941,1738860644311,-500.0,0.00016575,2]
[351955942,1738860644320,-500.0,0.00016575,2]
[351955943,1738860644330,-1212.42,0.00016575,2]
[351955944,1738860644340,-500.0,0.00016575,2]
[351955945,1738860644350,-500.0,0.00016575,2]
[351955946,1738860644359,-838.35,0.00016575,2]
[351955947,1738860644371,-500.0,0.00016575,2]
[351955948,1738860644382,-1142.64,0.00016575,2]
[351955949,1738860644392,-1268.05,0.00016575,2]
[351955950,1738860644402,-500.0,0.00016575,2]
[351955951,1738860644411,-500.0,0.00016575,2]
[351955952,1738860644421,-500.0,0.00016575,2]
[351955953,1738860644430,-601.72,0.00016575,2]
[351955954,1738860644439,-479.45641191,0.00016575,2]
[351955955,1738860644450,-500.0,0.00016575,2]
[351955956,1738860644460,-500.0,0.00016575,2]
[351955957,1738860644469,-500.0,0.00016575,2]
[351955958,1738860644479,-500.0,0.00016575,2]
[351955959,1738860644488,-500.0,0.00016575,2]
[351955960,1738860644498,-692.47,0.00016575,2]
[351955961,1738860644507,-631.28,0.00016575,2]
[351955962,1738860644517,-491.89,0.00016658,30]
[351955963,1738860644527,-500.0,0.00016712,2]
[351955964,1738860644536,-769.06,0.00016712,2]
[351955965,1738860644546,-500.0,0.00016712,2]
[351955966,1738860644556,-500.0,0.00016712,2]
[351955967,1738860644565,-500.0,0.00016712,2]
[351955968,1738860644575,-1104.2,0.00016712,2]
[351955969,1738860644584,-1914.98,0.00016712,2]
[351955970,1738860644593,-500.0,0.00016712,2]
[351955971,1738860644603,-500.0,0.00016712,2]
[351955972,1738860644612,-500.0,0.00016712,2]
[351955973,1738860644622,-1560.07,0.00016712,2]
[351955974,1738860644632,-500.0,0.00016712,2]
[351955975,1738860644642,-500.0,0.00016712,2]
[351955976,1738860644651,-500.0,0.00016712,2]
[351955977,1738860644660,-1556.99,0.00016712,2]
[351955978,1738860644670,-500.0,0.00016712,2]
[351955979,1738860644679,-500.0,0.00016712,2]
[351955980,1738860644688,-682.72,0.00016712,2]
[351955981,1738860644697,-973.72,0.00016712,2]
[351955982,1738860644707,-707.35,0.00016712,2]
[351955983,1738860644717,-750.97,0.00016712,2]
[351955984,1738860644727,-511.46,0.00016712,2]
[351955985,1738860644736,-475.22943646,0.00016712,2]
[351955986,1738860644746,-500.0,0.00016712,2]
[351955987,1738860644755,-500.0,0.00016712,2]
[351955988,1738860644765,-675.15,0.00016712,2]
[351955989,1738860644774,-759.09,0.00016712,2]
[351955990,1738860644784,-1470.9,0.00016712,2]
[351955991,1738860644794,-500.0,0.00016712,2]
[351955992,1738860644804,-1530.82,0.00016712,2]
[351955993,1738860644814,-780.39,0.00016712,2]
[351955994,1738860644824,-500.0,0.00016712,2]
[351955995,1738860645043,-500.0,0.00016712,2]
[351955996,1738860645055,-500.0,0.00016712,2]
[351955997,1738860645066,-500.0,0.00016712,2]
[351955998,1738860645076,-500.0,0.00016712,2]
[351955999,1738860645086,-554.73,0.00016712,2]
[351956000,1738860645096,-500.0,0.00016712,2]
[351956001,1738860645106,-500.0,0.00016712,2]
[351956002,1738860645116,-558.21,0.00016712,2]
[351956003,1738860645125,-500.0,0.00016712,2]
[351956004,1738860645135,-500.0,0.00016712,2]
[351956005,1738860645145,-500.0,0.00016712,2]
[351956006,1738860645155,-1212.42,0.00016712,2]
[351956007,1738860645166,-500.0,0.00016712,2]
[351956008,1738860645178,-500.0,0.00016712,2]
[351956009,1738860645190,-838.35,0.00016712,2]
[351956010,1738860645202,-500.0,0.00016712,2]
[351956011,1738860645212,-1142.64,0.00016712,2]
[351956012,1738860645222,-1268.05,0.00016712,2]
[351956013,1738860645235,-500.0,0.00016712,2]
[351956014,1738860645245,-500.0,0.00016712,2]
[351956015,1738860645256,-500.0,0.00016712,2]
[351956016,1738860645266,-601.72,0.00016712,2]
[351956017,1738860645278,-500.0,0.00016712,2]
[351956018,1738860645288,-500.0,0.00016712,2]
[351956019,1738860645298,-500.0,0.00016712,2]
[351956020,1738860645307,-500.0,0.00016712,2]
[351956021,1738860645317,-500.0,0.00016712,2]
[351956022,1738860645326,-692.47,0.00016712,2]
[351956023,1738860645337,-631.28,0.00016712,2]
[351956024,1738860645347,-1567.648,0.00016808,2]
[351956025,1738860645357,-266.94,0.00016839,2]
[351956026,1738860645369,-500.0,0.00016849,2]
[351956027,1738860645378,-769.06,0.00016849,2]
[351956028,1738860645389,-508.35492854,0.00016849,2]
[351956029,1738860645398,-500.0,0.00016849,2]
[351956030,1738860645407,-500.0,0.00016849,2]
[351956031,1738860645417,-1104.2,0.00016849,2]
[351956032,1738860645427,-1914.98,0.00016849,2]
[351956033,1738860645437,-500.0,0.00016849,2]
[351956034,1738860645447,-500.0,0.00016849,2]
[351956035,1738860645456,-500.0,0.00016849,2]
[351956036,1738860645466,-1560.07,0.00016849,2]
[351956037,1738860645475,-500.0,0.00016849,2]
[351956038,1738860645485,-500.0,0.00016849,2]
[351956039,1738860645494,-500.0,0.00016849,2]
[351956040,1738860645504,-1556.99,0.00016849,2]
[351956041,1738860645513,-500.0,0.00016849,2]
[351956042,1738860645524,-500.0,0.00016849,2]
[351956043,1738860645534,-682.72,0.00016849,2]
[351956044,1738860645543,-973.72,0.00016849,2]
[351956045,1738860645553,-707.35,0.00016849,2]
[351956046,1738860645563,-750.97,0.00016849,2]
[351956047,1738860645573,-511.46,0.00016849,2]
[351956048,1738860645582,-500.0,0.00016849,2]
[351956049,1738860645592,-622.95334317,0.00016849,2]
[351956050,1738860645601,-675.15,0.00016849,2]
[351956051,1738860645611,-759.09,0.00016849,2]
[351956052,1738860645624,-1470.9,0.00016849,2]
[351956053,1738860645633,-500.0,0.00016849,2]
[351956054,1738860645643,-1530.82,0.00016849,2]
[351956055,1738860645654,-780.39,0.00016849,2]
[351956056,1738860645664,-500.0,0.00016849,2]
[351956057,1738860645675,-500.0,0.00016849,2]
[351956058,1738860645685,-500.0,0.00016849,2]
[351956059,1738860645696,-500.0,0.00016849,2]
[351956060,1738860645706,-500.0,0.00016849,2]
[351956061,1738860645716,-554.73,0.00016849,2]
[351956062,1738860645726,-500.0,0.00016849,2]
[351956063,1738860645735,-500.0,0.00016849,2]
[351956064,1738860645746,-558.21,0.00016849,2]
[351956065,1738860645756,-500.0,0.00016849,2]
[351956066,1738860645766,-500.0,0.00016849,2]
[351956067,1738860645776,-500.0,0.00016849,2]
[351956068,1738860645786,-1212.42,0.00016849,2]
[351956069,1738860645797,-500.0,0.00016849,2]
[351956070,1738860645806,-500.0,0.00016849,2]
[351956071,1738860645816,-838.35,0.00016849,2]
[351956072,1738860645825,-500.0,0.00016849,2]
[351956073,1738860645835,-1142.64,0.00016849,2]
[351956074,1738860645844,-1268.05,0.00016849,2]
[351956075,1738860645853,-500.0,0.00016849,2]
[351956076,1738860645863,-500.0,0.00016849,2]
[351956077,1738860645879,-500.0,0.00016849,2]
[351956078,1738860645890,-601.72,0.00016849,2]
[351956079,1738860645903,-500.0,0.00016849,2]
[351956080,1738860645914,-500.0,0.00016849,2]
[351956081,1738860645923,-500.0,0.00016849,2]
[351956082,1738860645935,-500.0,0.00016849,2]
[351956083,1738860645945,-500.0,0.00016849,2]
[351956084,1738860645955,-692.47,0.00016849,2]
[351956085,1738860645966,-631.28,0.00016849,2]
[351956086,1738860645978,-500.0,0.00016986,2]
[351956087,1738860645988,-769.06,0.00016986,2]
[351956088,1738860645999,-500.0,0.00016986,2]
[351956089,1738860646009,-500.0,0.00016986,2]
[351956090,1738860646019,-1104.2,0.00016986,2]
[351956091,1738860646029,-1914.98,0.00016986,2]
[351956092,1738860646039,-500.0,0.00016986,2]
[351956093,1738860646049,-500.0,0.00016986,2]
[351956094,1738860646059,-500.0,0.00016986,2]
[351956095,1738860646068,-1560.07,0.00016986,2]
[351956096,1738860646078,-500.0,0.00016986,2]
[351956097,1738860646088,-500.0,0.00016986,2]
[351956098,1738860646098,-500.0,0.00016986,2]
[351956100,1738860646108,-1556.99,0.00016986,2]
[351956101,1738860646121,-500.0,0.00016986,2]
[351956102,1738860646131,-500.0,0.00016986,2]
[351956103,1738860646141,-682.72,0.00016986,2]
[351956104,1738860646151,-973.72,0.00016986,2]
[351956105,1738860646161,-707.35,0.00016986,2]
[351956106,1738860646172,-750.97,0.00016986,2]
[351956107,1738860646182,-511.46,0.00016986,2]
[351956108,1738860646192,-500.0,0.00016986,2]
[351956109,1738860646201,-675.15,0.00016986,2]
[351956110,1738860646210,-759.09,0.00016986,2]
[351956112,1738860646220,-1470.9,0.00016986,2]
[351956114,1738860646230,-500.0,0.00016986,2]
[351956115,1738860646240,-1530.82,0.00016986,2]
[351956116,1738860646250,-780.39,0.00016986,2]
[351956117,1738860646260,-500.0,0.00016986,2]
[351956118,1738860646270,-500.0,0.00016986,2]
[351956119,1738860646279,-500.0,0.00016986,2]
[351956120,1738860646289,-500.0,0.00016986,2]
[351956121,1738860646299,-500.0,0.00016986,2]
[351956122,1738860646309,-554.73,0.00016986,2]
[351956123,1738860646319,-500.0,0.00016986,2]
[351956124,1738860646328,-500.0,0.00016986,2]
[351956125,1738860646338,-558.21,0.00016986,2]
[351956126,1738860646347,-500.0,0.00016986,2]
[351956127,1738860646357,-500.0,0.00016986,2]
[351956128,1738860646370,-500.0,0.00016986,2]
[351956129,1738860646379,-1212.42,0.00016986,2]
[351956130,1738860646389,-500.0,0.00016986,2]
[351956131,1738860646399,-500.0,0.00016986,2]
[351956132,1738860646409,-838.35,0.00016986,2]
[351956133,1738860646419,-500.0,0.00016986,2]
[351956134,1738860646429,-1142.64,0.00016986,2]
[351956135,1738860646439,-1268.05,0.00016986,2]
[351956136,1738860646448,-500.0,0.00016986,2]
[351956137,1738860646458,-500.0,0.00016986,2]
[351956138,1738860646468,-500.0,0.00016986,2]
[351956139,1738860646478,-601.72,0.00016986,2]
[351956140,1738860646488,-500.0,0.00016986,2]
[351956141,1738860646498,-500.0,0.00016986,2]
[351956142,1738860646508,-500.0,0.00016986,2]
[351956143,1738860646517,-500.0,0.00016986,2]
[351956144,1738860646527,-500.0,0.00016986,2]
[351956145,1738860646536,-692.47,0.00016986,2]
[351956146,1738860646546,-631.28,0.00016986,2]
[351956147,1738860646557,-500.0,0.00017122,2]
[351956148,1738860646567,-746.58,0.00017122,2]
[351956149,1738860646577,-1857.56,0.00017122,2]
[351956150,1738860646586,-901.62,0.00017122,2]
[351956151,1738860646596,-1181.4,0.00017122,2]
[351956152,1738860646605,-500.0,0.00017123,2]
[351956153,1738860646618,-769.06,0.00017123,2]
[351956154,1738860646629,-500.0,0.00017123,2]
[351956155,1738860646639,-500.0,0.00017123,2]
[351956156,1738860646648,-1104.2,0.00017123,2]
[351956157,1738860646658,-1914.98,0.00017123,2]
[351956158,1738860646668,-500.0,0.00017123,2]
[351956159,1738860646678,-306.98383393,0.00017123,2]
[351956160,1738860646699,-193.01616607,0.00017123,2]
[351956161,1738860646710,-500.0,0.00017123,2]
[351956162,1738860646720,-1560.07,0.00017123,2]
[351956163,1738860646730,-168.93461275,0.00017123,2]
[351956164,1738860646739,-500.0,0.00017123,2]
[351956165,1738860646749,-500.0,0.00017123,2]
[351956166,1738860646759,-1556.99,0.00017123,2]
[351956167,1738860646770,-500.0,0.00017123,2]
[351956168,1738860646782,-500.0,0.00017123,2]
[351956169,1738860646792,-682.72,0.00017123,2]
[351956170,1738860646802,-973.72,0.00017123,2]
[351956171,1738860646812,-707.35,0.00017123,2]
[351956172,1738860646822,-750.97,0.00017123,2]
[351956173,1738860646832,-511.46,0.00017123,2]
[351956174,1738860646841,-500.0,0.00017123,2]
[351956175,1738860646850,-675.15,0.00017123,2]
[351956176,1738860646860,-759.09,0.00017123,2]
[351956177,1738860646875,-1470.9,0.00017123,2]
[351956178,1738860646886,-500.0,0.00017123,2]
[351956179,1738860646898,-1530.82,0.00017123,2]
[351956180,1738860646909,-780.39,0.00017123,2]
[351956181,1738860646919,-500.0,0.00017123,2]
[351956182,1738860646930,-500.0,0.00017123,2]
[351956183,1738860646940,-500.0,0.00017123,2]
[351956184,1738860646949,-500.0,0.00017123,2]
[351956185,1738860646960,-500.0,0.00017123,2]
[351956186,1738860646970,-554.73,0.00017123,2]
[351956187,1738860646979,-500.0,0.00017123,2]
[351956188,1738860646989,-500.0,0.00017123,2]
[351956189,1738860646998,-558.21,0.00017123,2]
[351956190,1738860647008,-500.0,0.00017123,2]
[351956191,1738860647017,-500.0,0.00017123,2]
[351956192,1738860647027,-500.0,0.00017123,2]
[351956193,1738860647036,-1212.42,0.00017123,2]
[351956194,1738860647046,-287.2842434,0.00017123,2]
[351956195,1738860647055,-500.0,0.00017123,2]
[351956196,1738860647065,-838.35,0.00017123,2]
[351956197,1738860647075,-500.0,0.00017123,2]
[351956198,1738860647084,-1142.64,0.00017123,2]
[351956199,1738860647093,-1268.05,0.00017123,2]
[351956200,1738860647103,-500.0,0.00017123,2]
[351956201,1738860647112,-500.0,0.00017123,2]
[351956202,1738860647124,-500.0,0.00017123,2]
[351956203,1738860647133,-601.72,0.00017123,2]
[351956204,1738860647143,-500.0,0.00017123,2]
[351956205,1738860647153,-500.0,0.00017123,2]
[351956206,1738860647162,-500.0,0.00017123,2]
[351956207,1738860647181,-500.0,0.00017123,2]
[351956208,1738860647191,-500.0,0.00017123,2]
[351956209,1738860647200,-692.47,0.00017123,2]
[351956210,1738860647209,-631.28,0.00017123,2]
[351956211,1738860647222,-500.0,0.00017259,2]
[351956212,1738860647235,-746.58,0.00017259,2]
[351956213,1738860647250,-1857.56,0.00017259,2]
[351956214,1738860647263,-901.62,0.00017259,2]
[351956215,1738860647274,-400.70497977,0.00017259,2]
[351956216,1738860647300,-780.69502023,0.00017259,2]
[351956217,1738860647314,-500.0,0.0001726,2]
[351956218,1738860647327,-769.06,0.0001726,2]
[351956219,1738860647340,-500.0,0.0001726,2]
[351956220,1738860647353,-500.0,0.0001726,2]
[351956221,1738860647367,-1104.2,0.0001726,2]
[351956222,1738860647380,-1914.98,0.0001726,2]
[351956223,1738860647391,-500.0,0.0001726,2]
[351956224,1738860647402,-500.0,0.0001726,2]
[351956225,1738860647415,-1560.07,0.0001726,2]
[351956226,1738860647428,-500.0,0.0001726,2]
[351956227,1738860647440,-500.0,0.0001726,2]
[351956228,1738860647453,-1556.99,0.0001726,2]
[351956229,1738860647466,-500.0,0.0001726,2]
[351956230,1738860647478,-500.0,0.0001726,2]
[351956231,1738860647492,-682.72,0.0001726,2]
[351956232,1738860647505,-973.72,0.0001726,2]
[351956233,1738860647517,-707.35,0.0001726,2]
[351956234,1738860647530,-429.43509922,0.0001726,2]
[351956235,1738860647563,-321.53490078,0.0001726,2]
[351956236,1738860647574,-511.46,0.0001726,2]
[351956237,1738860647588,-494.68741395,0.0001726,2]
[351956238,1738860647600,-675.15,0.0001726,2]
[351956239,1738860647614,-759.09,0.0001726,2]
[351956240,1738860647626,-1470.9,0.0001726,2]
[351956241,1738860647639,-500.0,0.0001726,2]
[351956242,1738860647651,-1530.82,0.0001726,2]
[351956243,1738860647663,-780.39,0.0001726,2]
[351956244,1738860647674,-500.0,0.0001726,2]
[351956245,1738860647685,-500.0,0.0001726,2]
[351956246,1738860647696,-500.0,0.0001726,2]
[351956247,1738860647707,-310.09096115,0.0001726,2]
[351956248,1738860647722,-500.0,0.0001726,2]
[351956249,1738860647735,-332.57672412,0.0001726,2]
[351956250,1738860648083,-222.15327588,0.0001726,2]
[351956251,1738860648096,-500.0,0.0001726,2]
[351956252,1738860648108,-500.0,0.0001726,2]
[351956253,1738860648121,-558.21,0.0001726,2]
[351956254,1738860648133,-500.0,0.0001726,2]
[351956255,1738860648144,-500.0,0.0001726,2]
[351956256,1738860648156,-500.0,0.0001726,2]
[351956257,1738860648168,-1212.42,0.0001726,2]
[351956258,1738860648180,-500.0,0.0001726,2]
[351956259,1738860648192,-838.35,0.0001726,2]
[351956260,1738860648204,-500.0,0.0001726,2]
[351956261,1738860648215,-1142.64,0.0001726,2]
[351956262,1738860648229,-1268.05,0.0001726,2]
[351956263,1738860648242,-500.0,0.0001726,2]
[351956264,1738860648255,-500.0,0.0001726,2]
[351956265,1738860648268,-500.0,0.0001726,2]
[351956266,1738860648281,-601.72,0.0001726,2]
[351956267,1738860648294,-500.0,0.0001726,2]
[351956268,1738860648306,-500.0,0.0001726,2]
[351956269,1738860648319,-500.0,0.0001726,2]
[351956270,1738860648331,-500.0,0.0001726,2]
[351956271,1738860648343,-301.24410418,0.0001726,2]
[351956272,1738860648355,-692.47,0.0001726,2]
[351956273,1738860648371,-631.28,0.0001726,2]
[351956274,1738860648384,-746.58,0.00017396,2]
[351956275,1738860648396,-1857.56,0.00017396,2]
[351956276,1738860648409,-464.10408947,0.00017396,2]
[351956277,1738860648424,-437.51591053,0.00017396,2]
[351956278,1738860648436,-47.48408947,0.00017396,2]
[351956279,1738860648462,-1022.1,0.00017396,2]
[351956280,1738860648482,-111.81591053,0.00017396,2]
[351956281,1738860648495,-500.0,0.00017397,2]
[351956282,1738860648507,-769.06,0.00017397,2]
[351956283,1738860648519,-500.0,0.00017397,2]
[351956284,1738860648531,-500.0,0.00017397,2]
[351956285,1738860648543,-1104.2,0.00017397,2]
[351956286,1738860648555,-1914.98,0.00017397,2]
[351956287,1738860648567,-500.0,0.00017397,2]
[351956288,1738860648578,-500.0,0.00017397,2]
[351956289,1738860648590,-1560.07,0.00017397,2]
[351956290,1738860648601,-500.0,0.00017397,2]
[351956291,1738860648613,-500.0,0.00017397,2]
[351956292,1738860648628,-1556.99,0.00017397,2]
[351956293,1738860648639,-500.0,0.00017397,2]
[351956294,1738860648651,-500.0,0.00017397,2]
[351956295,1738860648664,-682.72,0.00017397,2]
[351956296,1738860648676,-973.72,0.00017397,2]
[351956297,1738860648689,-707.35,0.00017397,2]
[351956298,1738860648701,-750.97,0.00017397,2]
[351956299,1738860648713,-511.46,0.00017397,2]
[351956300,1738860648725,-675.15,0.00017397,2]
[351956301,1738860648737,-759.09,0.00017397,2]
[351956302,1738860648749,-1470.9,0.00017397,2]
[351956303,1738860648762,-500.0,0.00017397,2]
[351956304,1738860648774,-1530.82,0.00017397,2]
[351956305,1738860648786,-780.39,0.00017397,2]
[351956306,1738860648799,-511.89041198,0.00017397,2]
[351956307,1738860648811,-500.0,0.00017397,2]
[351956308,1738860648824,-500.0,0.00017397,2]
[351956309,1738860648837,-500.0,0.00017397,2]
[351956310,1738860648850,-554.73,0.00017397,2]
[351956311,1738860648863,-500.0,0.00017397,2]
[351956312,1738860648877,-500.0,0.00017397,2]
[351956313,1738860648889,-558.21,0.00017397,2]
[351956314,1738860648905,-500.0,0.00017397,2]
[351956315,1738860648916,-500.0,0.00017397,2]
[351956316,1738860648928,-500.0,0.00017397,2]
[351956317,1738860648941,-1212.42,0.00017397,2]
[351956318,1738860648955,-500.0,0.00017397,2]
[351956319,1738860648968,-838.35,0.00017397,2]
[351956320,1738860648982,-500.0,0.00017397,2]
[351956321,1738860648995,-1142.64,0.00017397,2]
[351956322,1738860649007,-1268.05,0.00017397,2]
[351956323,1738860649019,-500.0,0.00017397,2]
[351956324,1738860649031,-500.0,0.00017397,2]
[351956325,1738860649044,-500.0,0.00017397,2]
[351956326,1738860649057,-601.72,0.00017397,2]
[351956327,1738860649070,-500.0,0.00017397,2]
[351956328,1738860649083,-500.0,0.00017397,2]
[351956329,1738860649096,-500.0,0.00017397,2]
[351956330,1738860649108,-500.0,0.00017397,2]
[351956331,1738860649121,-692.47,0.00017397,2]
[351956332,1738860649134,-631.28,0.00017397,2]
[351956333,1738860649146,-746.58,0.00017533,2]
[351956334,1738860649161,-1857.56,0.00017533,2]
[351956335,1738860649175,-901.62,0.00017533,2]
[351956336,1738860649189,-1181.4,0.00017533,2]
[351956337,1738860649203,-500.0,0.00017534,2]